bitfinex/quotes_BTCUSD_20210402
["timestamp","ask_amount","ask_price","bid_price","bid_amount"]
[1617340927183,0.05,59564.0,59560.0,0.50369]
[1617340927383,0.054,59564.0,59560.0,0.50369]
[1617340927579,0.004,59564.0,59560.0,0.50369]
[1617340927785,0.204,59569.0,59560.0,0.50369]
[1617340927786,0.004,59565.0,59560.0,0.50369]
[1617340927983,0.387181,59563.0,59560.0,0.50369]
[1617340928271,0.437181,59563.0,59560.0,0.50369]
[1617340928673,0.252123,59563.0,59561.0,0.387181]
[1617340929108,0.302123,59563.0,59561.0,0.387181]
[1617340929916,0.05,59563.0,59561.0,0.387181]
[1617340930110,0.00196486,59565.0,59561.0,0.387181]
[1617340930315,0.00196539,59566.0,59561.0,0.387181]
[1617340930512,0.256113,59567.0,59562.0,0.387181]
[1617340930711,0.256113,59567.0,59562.0,0.00828429]
[1617340930712,0.24807858,59567.0,59562.0,0.00828429]
[1617340930914,0.38914625,59566.0,59562.0,0.00828429]
[1617340931114,0.252118,59565.0,59562.0,0.00828429]
[1617340931311,0.387181,59564.0,59562.0,0.00828429]
[1617340931529,0.437181,59564.0,59562.0,0.00828429]
[1617340933937,0.895701,59564.0,59562.0,0.00828429]
[1617340934155,0.975501,59564.0,59562.0,0.00828429]
[1617340934356,1.96,59563.0,59562.0,0.00828429]
[1617340934557,2.347181,59563.0,59562.0,0.00828429]
[1617340934756,2.597181,59563.0,59562.0,0.00828429]
[1617340935156,0.897181,59563.0,59562.0,0.00828429]
[1617340935555,0.647181,59563.0,59562.0,0.00828429]
[1617340935955,1.427181,59563.0,59562.0,0.00828429]
[1617340936557,0.647181,59563.0,59562.0,0.00828429]
[1617340936983,1.18,59563.0,59562.0,0.00828429]
[1617340937180,0.97,59563.0,59562.0,0.00828429]
[1617340937385,1.357181,59563.0,59562.0,0.00828429]
[1617340937982,1.937181,59563.0,59562.0,0.00828429]
[1617340938184,2.552181,59563.0,59562.0,0.00828429]
[1617340938583,1.972181,59563.0,59562.0,0.00828429]
[1617340941617,1.052181,59563.0,59562.0,0.00828429]
[1617340941819,0.802181,59563.0,59562.0,0.00828429]
[1617340942030,0.437181,59563.0,59562.0,0.00828429]
[1617340942435,0.419118,59565.0,59562.0,0.00828429]
[1617340943031,0.167,59565.0,59562.0,0.00828429]
[1617340943714,0.05,59565.0,59562.0,0.00828429]
[1617340944113,0.302093,59570.0,59562.0,0.00828429]
[1617340944323,0.387181,59569.0,59562.0,0.00828429]
[1617340944521,0.265,59568.0,59562.0,0.00828429]
[1617340944732,0.387181,59567.0,59565.0,0.0025]
[1617340944916,0.387181,59567.0,59562.0,0.00828429]
[1617340944917,0.387181,59567.0,59562.0,0.0025]
[1617340945120,0.387181,59565.0,59562.0,0.0025]
[1617340945322,0.1,59564.0,59562.0,0.0025]
[1617340945518,2.587181,59563.0,59562.0,0.0025]
[1617340945918,0.687181,59563.0,59562.0,0.0025]
[1617340946719,0.3,59563.0,59562.0,0.0025]
[1617340946921,0.05,59563.0,59562.0,0.0025]
[1617340947119,0.302108,59566.0,59562.0,0.0025]
[1617340947322,0.487181,59565.0,59562.0,0.0025]
[1617340947527,0.537181,59565.0,59562.0,0.0025]
[1617340947718,0.135,59564.0,59562.0,0.0025]
[1617340947918,2.587181,59563.0,59562.0,0.0025]
[1617340948119,0.687181,59563.0,59562.0,0.0025]
[1617340948519,0.437181,59563.0,59562.0,0.0025]
[1617340948920,0.857181,59563.0,59562.0,0.0025]
[1617340949322,0.437181,59563.0,59562.0,0.0025]
[1617340949519,0.537181,59563.0,59562.0,0.0025]
[1617340949919,0.437181,59563.0,59562.0,0.0025]
[1617340956562,0.437181,59563.0,59562.0,0.00748466]
[1617340958248,0.487181,59563.0,59562.0,0.00748466]
[1617340958441,0.657181,59563.0,59562.0,0.00748466]
[1617340959851,1.133721,59563.0,59562.0,0.00748466]
[1617340960042,2.893721,59563.0,59562.0,0.00655453]
[1617340960247,1.133721,59563.0,59562.0,0.00655453]
[1617340960443,1.383721,59563.0,59562.0,0.00655453]
[1617340961643,1.133721,59563.0,59562.0,0.00655453]
[1617340963253,1.233721,59563.0,59562.0,0.00655453]
[1617340964051,0.26,59562.0,59560.0,0.46024453]
[1617340964255,1.329322,59561.0,59560.0,0.46024453]
[1617340964452,1.629322,59561.0,59560.0,0.46024453]
[1617340964651,1.719322,59561.0,59560.0,0.46024453]
[1617340964850,1.244632,59561.0,59560.0,0.46024453]
[1617340965661,0.994632,59561.0,59560.0,0.46024453]
[1617340965864,1.259632,59561.0,59560.0,0.46024453]
[1617340966867,0.954322,59561.0,59560.0,0.46024453]
[1617340968683,0.567141,59561.0,59560.0,0.46024453]
[1617340968883,0.302141,59561.0,59560.0,0.46024453]
[1617340971914,0.252141,59561.0,59560.0,0.46024453]
[1617340972510,1.062141,59561.0,59560.0,0.45429784]
[1617340972712,0.472141,59561.0,59560.0,0.45429784]
[1617340972912,0.252141,59561.0,59560.0,0.45429784]
[1617340973598,0.00197942,59571.0,59560.0,0.45429784]
[1617340973796,0.00197942,59571.0,59561.0,0.387181]
[1617340973998,0.00197938,59573.0,59564.0,0.0002]
[1617340974197,0.00197934,59574.0,59565.0,0.304688]
[1617340974593,0.25208,59572.0,59565.0,0.304688]
[1617340974993,0.25208,59572.0,59565.0,0.304288]
[1617340975390,0.30208,59572.0,59565.0,0.304288]
[1617340976492,0.252089,59570.0,59565.0,0.304288]
[1617340976691,0.302089,59570.0,59565.0,0.304288]
[1617340978497,0.387233,59569.0,59561.0,0.03]
[1617340978692,0.302089,59570.0,59561.0,0.03]
[1617340979293,0.302089,59570.0,59560.0,0.45629784]
[1617340979498,0.07302825,59568.0,59560.0,0.45429784]
[1617340980093,0.12302825,59568.0,59560.0,0.45429784]
[1617340980294,0.07302825,59568.0,59560.0,0.45429784]
[1617340980495,0.302106,59567.0,59560.0,0.45429784]
[1617340980897,0.252106,59567.0,59560.0,0.45429784]
[1617340981099,0.302106,59567.0,59560.0,0.45429784]
[1617340983914,0.252106,59567.0,59560.0,0.45429784]
[1617340984146,0.06722825,59568.0,59561.0,0.387233]
[1617340985741,0.05722825,59568.0,59561.0,0.387233]
[1617340987583,0.05722825,59568.0,59560.0,0.45429784]
[1617340987980,0.252108,59566.0,59560.0,0.45429784]
[1617340988180,0.256308,59566.0,59560.0,0.45429784]
[1617340988430,0.306308,59566.0,59560.0,0.45429784]
[1617340989634,0.05,59566.0,59560.0,0.45429784]
[1617340990034,0.05,59568.0,59560.0,0.45429784]
[1617340990232,0.05,59568.0,59561.0,0.45321878]
[1617340990434,0.08598866,59576.0,59561.0,0.387233]
[1617340990639,0.004,59569.0,59560.0,0.45429784]
[1617340990836,0.006,59573.0,59562.0,0.0002]
[1617340991642,0.252096,59569.0,59562.0,0.0002]
[1617340992035,0.302096,59569.0,59562.0,0.0002]
[1617340994238,0.302096,59569.0,59560.0,0.45429784]
[1617340994643,0.05,59569.0,59560.0,0.45429784]
[1617340994848,0.0056,59568.0,59560.0,0.45429784]
[1617340995051,0.0556,59568.0,59561.0,0.387233]
[1617340995245,0.0056,59568.0,59561.0,0.387233]
[1617340995645,0.252105,59565.0,59561.0,0.387233]
[1617340995846,0.302105,59565.0,59561.0,0.387233]
[1617340997043,0.302105,59565.0,59560.0,0.22153084]
[1617340997666,0.015424,59561.0,59560.0,0.22153084]
[1617340998669,0.015424,59561.0,59560.0,0.52578784]
[1617341002913,0.015424,59561.0,59560.0,0.53327275]
[1617341006368,0.010424,59561.0,59560.0,0.53327275]
[1617341007376,0.01020223,59561.0,59560.0,0.53327275]
[1617341016049,0.01020223,59561.0,59560.0,0.63327275]
[1617341016250,0.01020223,59561.0,59560.0,0.53327275]
[1617341017048,0.01020223,59561.0,59560.0,0.56327275]
[1617341018267,0.01020223,59561.0,59560.0,0.69827275]
[1617341019111,0.01020223,59561.0,59560.0,1.54827275]
[1617341019312,0.01020223,59561.0,59560.0,0.69827275]
[1617341019515,0.01020223,59561.0,59560.0,0.95033775]
[1617341021116,0.01020223,59561.0,59560.0,1.56033775]
[1617341021714,0.01020223,59561.0,59560.0,0.95033775]
[1617341022714,0.01020223,59561.0,59560.0,0.94943775]
[1617341024126,0.00020223,59561.0,59560.0,2.92943775]
[1617341025328,0.00020223,59561.0,59560.0,3.02943775]
[1617341025927,0.00020223,59561.0,59560.0,3.58943775]
[1617341026752,0.00020223,59561.0,59560.0,3.02943775]
[1617341027953,0.00020223,59561.0,59560.0,3.98943775]
[1617341028360,0.00020223,59561.0,59560.0,3.02943775]
[1617341029976,0.00020223,59561.0,59560.0,3.55943775]
[1617341030174,0.00020223,59561.0,59560.0,3.45943775]
[1617341030375,0.00020223,59561.0,59560.0,3.55943775]
[1617341030577,0.00020223,59561.0,59560.0,3.02943775]
[1617341031422,0.00020223,59561.0,59560.0,2.92943775]
[1617341031823,0.00020223,59561.0,59560.0,1.81943775]
[1617341032031,0.00020223,59561.0,59560.0,0.66737275]
[1617341032237,0.32303223,59561.0,59560.0,0.53237275]
[1617341032430,0.42303223,59561.0,59560.0,0.53237275]
[1617341032628,0.37303223,59561.0,59560.0,0.22811575]
[1617341033858,0.76027823,59561.0,59560.0,0.22811575]
[1617341034065,1.07527823,59561.0,59560.0,0.22811575]
[1617341034258,0.97527823,59561.0,59560.0,0.22811575]
[1617341034456,1.22741423,59561.0,59560.0,0.22811575]
[1617341034855,0.89016823,59561.0,59560.0,0.22811575]
[1617341035054,0.63803223,59561.0,59560.0,0.22811575]
[1617341035253,0.58803223,59561.0,59560.0,0.22811575]
[1617341036054,0.58803223,59561.0,59560.0,0.25811575]
[1617341036455,0.58803223,59561.0,59560.0,0.22811575]
[1617341036653,0.37303223,59561.0,59560.0,0.22811575]
[1617341036862,0.05020223,59561.0,59560.0,0.53237475]
[1617341037062,0.00020223,59561.0,59560.0,0.53237475]
[1617341037855,0.00020223,59561.0,59560.0,1.28237475]
[1617341038059,0.00020223,59561.0,59560.0,1.55737475]
[1617341038257,0.00020223,59561.0,59560.0,0.80737475]
[1617341038862,0.00020223,59561.0,59560.0,0.77737475]
[1617341039060,0.00020223,59561.0,59560.0,0.53237475]
[1617341040081,0.00020223,59561.0,59560.0,0.56237475]
[1617341040684,0.00020223,59561.0,59560.0,0.53237475]
[1617341041911,0.00020223,59561.0,59560.0,0.69737475]
[1617341044929,0.00020223,59561.0,59560.0,0.68737475]
[1617341047778,0.00020223,59561.0,59560.0,1.49737475]
[1617341048787,0.00020223,59561.0,59560.0,2.05737475]
[1617341049585,0.00020223,59561.0,59560.0,1.49737475]
[1617341050589,0.00020223,59561.0,59560.0,0.68737475]
[1617341050988,0.50020223,59561.0,59560.0,0.68737475]
[1617341051190,0.55020223,59561.0,59560.0,0.68737475]
[1617341054209,0.50020223,59561.0,59560.0,0.65737475]
[1617341054613,0.50020223,59561.0,59560.0,0.35311575]
[1617341054807,0.50020223,59561.0,59560.0,0.21811575]
[1617341055236,0.50020223,59561.0,59560.0,0.24811575]
[1617341056242,0.55020223,59561.0,59560.0,0.21811575]
[1617341060696,0.54520223,59561.0,59560.0,0.21811575]
[1617341061095,0.54520223,59561.0,59560.0,0.24811575]
[1617341070794,0.54520223,59561.0,59560.0,0.21811575]
[1617341071794,0.54520223,59561.0,59560.0,0.24811575]
[1617341073827,0.54520223,59561.0,59560.0,0.21811575]
[1617341075029,0.54520223,59561.0,59560.0,0.24811575]
[1617341081063,0.54520223,59561.0,59560.0,0.34811575]
[1617341081256,0.54520223,59561.0,59560.0,3.19811575]
[1617341081658,0.54520223,59561.0,59560.0,1.12737475]
[1617341081853,0.54520223,59561.0,59560.0,0.65237475]
[1617341082257,0.54520223,59561.0,59560.0,1.32237475]
[1617341082857,0.54520223,59561.0,59560.0,1.22237475]
[1617341083054,0.54520223,59561.0,59560.0,1.45737475]
[1617341083256,0.54520223,59561.0,59560.0,2.32737475]
[1617341083459,0.54520223,59561.0,59560.0,1.45737475]
[1617341084883,0.545,59561.0,59560.0,1.45737475]
[1617341085684,0.545,59561.0,59560.0,0.78737475]
[1617341086283,0.545,59561.0,59560.0,1.49237475]
[1617341087301,0.545,59561.0,59560.0,2.53237475]
[1617341087506,0.545,59561.0,59560.0,2.63237475]
[1617341087907,0.5,59561.0,59560.0,2.63237475]
[1617341088106,0.5,59561.0,59560.0,3.06237475]
[1617341088311,0.5,59561.0,59560.0,4.19237475]
[1617341092551,0.5,59561.0,59560.0,4.09237475]
[1617341093152,0.5,59561.0,59560.0,4.3002983]
[1617341093817,0.05,59575.0,59561.0,3.11]
[1617341094025,0.005,59578.0,59575.0,3.14]
[1617341094222,0.302041,59580.0,59575.0,0.74027]
[1617341094420,0.302041,59580.0,59576.0,0.879159]
[1617341094620,0.352041,59580.0,59576.0,0.51478984]
[1617341094816,0.352041,59580.0,59576.0,0.21063084]
[1617341095417,0.1,59580.0,59576.0,0.21063084]
[1617341095619,0.387246,59579.0,59576.0,0.21063084]
[1617341096016,0.437246,59579.0,59576.0,0.21063084]
[1617341096216,0.05,59578.0,59576.0,0.21063084]
[1617341098820,0.387246,59577.0,59576.0,0.21063084]
[1617341099219,0.487246,59577.0,59576.0,0.21063084]
[1617341100031,0.1,59577.0,59576.0,0.21063084]
[1617341100234,0.05,59577.0,59576.0,0.21063084]
[1617341102032,0.0403,59579.0,59576.0,0.21063084]
[1617341102261,0.06720816,59582.0,59576.0,0.21063084]
[1617341102458,0.387246,59581.0,59576.0,0.21063084]
[1617341103261,0.437246,59581.0,59576.0,0.21063084]
[1617341104062,1.432246,59581.0,59576.0,0.21063084]
[1617341104261,0.265,59580.0,59576.0,0.21063084]
[1617341104466,0.437246,59581.0,59576.0,0.21063084]
[1617341105479,0.1008085,59581.0,59577.0,0.19176796]
[1617341105684,0.1008085,59581.0,59577.0,0.4023988]
[1617341105685,0.05,59581.0,59577.0,0.4023988]
[1617341105889,0.06751981,59586.0,59578.0,0.304146]
[1617341106087,0.01751981,59586.0,59579.0,0.137]
[1617341106286,0.01751981,59586.0,59579.0,0.73188751]
[1617341106491,0.91485913,59589.0,59583.0,0.304116]
[1617341106693,0.91485913,59589.0,59584.0,0.475928]
[1617341106886,0.91485913,59589.0,59588.0,3.414085]
[1617341107086,0.91485913,59589.0,59588.0,4.33192809]
[1617341107710,0.91485913,59589.0,59588.0,4.36192809]
[1617341108310,0.00098748,59605.0,59589.0,3.11]
[1617341108509,0.00098748,59605.0,59599.0,0.03]
[1617341108777,0.15,59606.0,59605.0,0.03]
[1617341108971,0.145,59606.0,59605.0,3.86868]
[1617341109172,0.00098735,59612.0,59605.0,5.32111084]
[1617341109370,0.00098735,59612.0,59607.0,0.24]
[1617341109580,0.99598735,59612.0,59608.0,0.56782]
[1617341109772,0.00098735,59612.0,59608.0,0.45063084]
[1617341110170,0.00098735,59612.0,59609.0,0.94]
[1617341110370,0.00098735,59612.0,59610.0,0.405]
[1617341110574,0.00098731,59613.0,59610.0,0.708947]
[1617341110772,0.054,59615.0,59610.0,0.645]
[1617341110973,0.995,59614.0,59611.0,0.59]
[1617341111175,0.995,59614.0,59611.0,0.24]
[1617341111371,0.995,59614.0,59609.0,0.21063084]
[1617341111569,0.995,59614.0,59609.0,0.45063084]
[1617341112373,1.299,59615.0,59610.0,0.725]
[1617341112572,1.049,59615.0,59610.0,0.725]
[1617341113370,0.995,59614.0,59610.0,0.725]
[1617341113572,1.299,59615.0,59610.0,0.725]
[1617341113772,0.995,59614.0,59610.0,0.725]
[1617341113973,1.299,59615.0,59610.0,0.725]
[1617341114369,1.3165103,59615.0,59610.0,0.725]
[1617341114573,0.995,59614.0,59610.0,0.725]
[1617341114771,0.387246,59613.0,59610.0,0.725]
[1617341114977,1.432246,59613.0,59610.0,0.485]
[1617341115171,1.432246,59613.0,59609.0,0.21063084]
[1617341115586,0.437246,59611.0,59609.0,0.21063084]
[1617341115985,0.05,59611.0,59609.0,0.21063084]
[1617341116191,0.05,59611.0,59610.0,0.01279115]
[1617341116388,0.0215103,59615.0,59610.0,0.22342199]
[1617341116585,1.045,59614.0,59610.0,0.22342199]
[1617341116786,1.382246,59613.0,59610.0,0.22342199]
[1617341116987,0.05,59614.0,59610.0,0.22342199]
[1617341117190,0.05,59613.0,59610.0,0.22342199]
[1617341117590,0.995,59614.0,59610.0,0.22342199]
[1617341117791,0.387246,59613.0,59610.0,0.22342199]
[1617341118006,1.382246,59613.0,59610.0,0.22342199]
[1617341118207,0.437246,59613.0,59610.0,0.22342199]
[1617341118608,0.0715103,59615.0,59610.0,0.22342199]
[1617341118813,1.382246,59614.0,59610.0,0.22342199]
[1617341119010,0.195,59613.0,59610.0,0.22342199]
[1617341119209,0.387246,59612.0,59610.0,0.22342199]
[1617341119414,0.437246,59612.0,59610.0,0.22342199]
[1617341119610,0.05,59612.0,59610.0,0.21342199]
[1617341119811,0.05,59613.0,59610.0,0.21342199]
[1617341120011,0.0175103,59615.0,59610.0,0.21342199]
[1617341121627,0.0175103,59615.0,59610.0,0.21841744]
[1617341121827,0.995,59614.0,59611.0,0.135]
[1617341122030,0.387246,59614.0,59611.0,0.34563084]
[1617341122229,0.437246,59614.0,59611.0,0.21063084]
[1617341123459,0.05,59614.0,59611.0,0.21063084]
[1617341123715,0.0175103,59615.0,59611.0,0.21063084]
[1617341123905,0.0175103,59615.0,59611.0,0.53901084]
[1617341124106,0.05252999,59615.0,59611.0,0.53901084]
[1617341125008,0.05252999,59615.0,59611.0,0.77901084]
[1617341125215,0.05252999,59615.0,59612.0,0.19]
[1617341125412,0.05252999,59615.0,59612.0,0.64063084]
[1617341125610,0.05252999,59615.0,59612.0,0.45063084]
[1617341126210,0.05252999,59615.0,59612.0,0.21063084]
[1617341127213,0.05252999,59615.0,59613.0,0.00778478]
[1617341127411,0.0175103,59615.0,59613.0,0.21841562]
[1617341127612,0.06803804,59615.0,59613.0,0.21841562]
[1617341128012,0.0175103,59615.0,59613.0,0.21841562]
[1617341128216,0.0025103,59615.0,59613.0,0.20841562]
[1617341128619,0.387246,59614.0,59613.0,0.20841562]
[1617341128819,0.487246,59614.0,59613.0,0.20841562]
[1617341129014,1.532246,59614.0,59613.0,0.20841562]
[1617341129217,1.527246,59614.0,59613.0,0.20841562]
[1617341129421,2.061836,59614.0,59613.0,0.20841562]
[1617341129617,2.366836,59614.0,59613.0,0.20841562]
[1617341129814,2.466836,59614.0,59613.0,0.20841562]
[1617341130016,2.49816093,59614.0,59613.0,0.20841562]
[1617341130216,2.44816093,59614.0,59613.0,0.20841562]
[1617341130415,2.316836,59614.0,59613.0,0.20841562]
[1617341130620,2.243856,59614.0,59613.0,0.20841562]
[1617341130817,1.248856,59614.0,59613.0,0.20841562]
[1617341131015,0.837246,59614.0,59613.0,0.20841562]
[1617341131434,1.832246,59614.0,59613.0,0.20841562]
[1617341131835,0.991246,59614.0,59613.0,0.20841562]
[1617341132033,0.837246,59614.0,59613.0,0.20841562]
[1617341132234,0.837246,59614.0,59613.0,0.20766014]
[1617341132636,0.837246,59614.0,59613.0,0.21513846]
[1617341135465,0.45,59614.0,59613.0,0.21513846]
[1617341135873,0.045,59614.0,59613.0,0.21513846]
[1617341136067,0.432246,59614.0,59613.0,0.21513846]
[1617341137078,0.532246,59614.0,59613.0,0.21513846]
[1617341137277,0.722246,59614.0,59613.0,0.21513846]
[1617341137676,0.972246,59614.0,59613.0,0.21513846]
[1617341138078,0.872246,59614.0,59613.0,0.21513846]
[1617341138742,0.622246,59614.0,59613.0,0.21513846]
[1617341139545,0.622246,59614.0,59613.0,0.21013846]
[1617341139946,0.722246,59614.0,59613.0,0.21013846]
[1617341140147,1.717246,59614.0,59613.0,0.21013846]
[1617341140551,0.722246,59614.0,59613.0,0.21013846]
[1617341140750,1.967246,59614.0,59613.0,0.21013846]
[1617341140950,2.219157,59614.0,59613.0,0.21013846]
[1617341142151,1.124157,59614.0,59613.0,0.21013846]
[1617341142354,0.874157,59614.0,59613.0,0.21013846]
[1617341142957,0.87514593,59614.0,59613.0,0.21013846]
[1617341143152,0.83014593,59614.0,59613.0,0.21013846]
[1617341143354,0.829157,59614.0,59613.0,0.21013846]
[1617341143755,0.83014593,59614.0,59613.0,0.21013846]
[1617341144151,0.829157,59614.0,59613.0,0.21013846]
[1617341144560,0.879157,59614.0,59613.0,0.21013846]
[1617341146985,0.829157,59614.0,59613.0,0.21013846]
[1617341147185,0.829157,59614.0,59612.0,0.00213497]
[1617341147380,0.692246,59613.0,59612.0,0.00014497]
[1617341147781,0.88368196,59613.0,59612.0,0.00014497]
[1617341147979,0.692246,59613.0,59612.0,0.00014497]
[1617341148378,1.03368196,59613.0,59612.0,0.00014497]
[1617341148578,0.93368196,59613.0,59612.0,0.00014497]
[1617341148982,2.02868196,59613.0,59612.0,0.00014497]
[1617341149183,0.3652,59612.0,59601.0,0.002]
[1617341149383,0.257112,59612.0,59601.0,0.002]
[1617341149611,0.0048,59609.0,59601.0,0.4408]
[1617341149810,0.0048,59609.0,59601.0,0.6808]
[1617341150208,0.0048,59609.0,59601.0,0.68047655]
[1617341150816,0.0048,59609.0,59601.0,0.71047655]
[1617341151018,0.256112,59612.0,59602.0,0.1]
[1617341151214,0.24,59611.0,59601.0,0.71047655]
[1617341151417,0.0054,59609.0,59602.0,0.67847655]
[1617341151620,0.19,59608.0,59602.0,0.67847655]
[1617341151819,0.05,59604.0,59602.0,0.4388]
[1617341152241,0.0054,59609.0,59602.0,0.4388]
[1617341152441,0.05,59610.0,59602.0,0.4388]
[1617341152843,0.24143596,59612.0,59602.0,0.4388]
[1617341153037,0.224,59611.0,59602.0,0.4388]
[1617341153435,0.251923,59610.0,59602.0,0.4388]
[1617341153885,0.301923,59610.0,59602.0,0.4388]
[1617341154085,0.163,59608.0,59602.0,0.4388]
[1617341154290,0.19,59607.0,59602.0,0.4388]
[1617341154490,0.004,59608.0,59602.0,0.4388]
[1617341158088,0.301923,59610.0,59602.0,0.4388]
[1617341158898,0.487246,59609.0,59602.0,0.4388]
[1617341159102,0.548246,59603.0,59602.0,0.43847898]
[1617341159292,0.963246,59603.0,59602.0,0.43847898]
[1617341159691,0.863246,59603.0,59602.0,0.43847898]
[1617341160120,0.315,59603.0,59602.0,0.43847898]
[1617341160322,0.05,59603.0,59602.0,0.43847898]
[1617341160719,0.251955,59603.0,59602.0,0.43847898]
[1617341160918,0.301955,59603.0,59602.0,0.43847898]
[1617341161718,0.689201,59603.0,59602.0,0.43847898]
[1617341161920,0.849201,59603.0,59602.0,0.43847898]
[1617341162122,0.849201,59603.0,59602.0,0.41358171]
[1617341162755,0.16,59603.0,59602.0,0.41358171]
[1617341162951,0.0009884,59612.0,59602.0,0.41358171]
[1617341163151,0.387246,59612.0,59602.0,0.41358171]
[1617341163545,0.84602519,59603.0,59602.0,0.41358171]
[1617341164152,1.23327119,59603.0,59602.0,0.41358171]
[1617341164351,1.28327119,59603.0,59602.0,0.41358171]
[1617341164557,1.47327119,59603.0,59602.0,0.41358171]
[1617341164756,1.08602519,59603.0,59602.0,0.41358171]
[1617341165154,1.47327119,59603.0,59602.0,0.41358171]
[1617341167166,1.08602519,59603.0,59602.0,0.41358171]
[1617341167372,1.08602519,59603.0,59602.0,1.72358171]
[1617341167571,1.08602519,59603.0,59602.0,2.02757671]
[1617341167765,1.08602519,59603.0,59602.0,0.41358171]
[1617341168822,0.89602519,59603.0,59602.0,0.41358171]
[1617341174645,0.93172519,59603.0,59602.0,0.41358171]
[1617341174849,1.06672519,59603.0,59602.0,0.41358171]
[1617341178698,1.06672519,59603.0,59602.0,0.42106134]
[1617341178899,1.45397119,59603.0,59602.0,0.42106134]
[1617341179697,1.06672519,59603.0,59602.0,0.42106134]
[1617341180100,1.06672519,59603.0,59602.0,0.29106134]
[1617341180296,1.06672519,59603.0,59602.0,1.77505634]
[1617341180500,1.06672519,59603.0,59602.0,0.82005634]
[1617341180696,1.06672519,59603.0,59602.0,0.59505634]
[1617341181314,0.93172519,59603.0,59602.0,1.48505634]
[1617341181514,0.88172519,59603.0,59602.0,1.48505634]
[1617341181717,0.88172519,59603.0,59602.0,1.72473289]
[1617341181916,0.88172519,59603.0,59602.0,1.71739866]
[1617341182113,0.88172519,59603.0,59602.0,1.00739866]
[1617341182314,0.88172519,59603.0,59602.0,0.77505634]
[1617341182715,0.88172519,59603.0,59602.0,0.72295834]
[1617341182716,0.93172519,59603.0,59602.0,0.72295834]
[1617341183116,0.93172519,59603.0,59602.0,0.54295834]
[1617341185062,0.93172519,59603.0,59602.0,0.29106134]
[1617341186265,1.06672519,59603.0,59602.0,0.28523973]
[1617341187071,1.45397119,59603.0,59602.0,0.28523973]
[1617341187870,1.06672519,59603.0,59602.0,0.28523973]
[1617341189698,1.45397119,59603.0,59602.0,0.28523973]
[1617341190097,1.45397119,59603.0,59602.0,0.28103341]
[1617341190699,1.06672519,59603.0,59602.0,0.28103341]
[1617341191098,1.06672519,59603.0,59602.0,0.26203341]
[1617341191717,1.45397119,59603.0,59602.0,0.26203341]
[1617341193520,1.06672519,59603.0,59602.0,0.26203341]
[1617341196552,1.06672519,59603.0,59602.0,0.25845893]
[1617341196767,1.01672519,59603.0,59602.0,0.25845893]
[1617341196965,1.01672519,59603.0,59602.0,1.91845893]
[1617341197164,0.88172519,59603.0,59602.0,2.22245393]
[1617341197363,0.88172519,59603.0,59602.0,2.45479625]
[1617341197571,0.88172519,59603.0,59602.0,0.79479625]
[1617341197765,0.88172519,59603.0,59602.0,0.56245393]
[1617341197965,0.88172519,59603.0,59602.0,0.79479625]
[1617341198366,0.88172519,59603.0,59602.0,0.56245393]
[1617341198769,0.93172519,59603.0,59602.0,0.56245393]
[1617341199009,1.06172519,59603.0,59602.0,3.31245393]
[1617341199512,0.92672519,59603.0,59602.0,0.56245393]
[1617341200913,0.92672519,59603.0,59602.0,0.25845893]
[1617341201320,1.06172519,59603.0,59602.0,0.25845893]
[1617341202920,0.92672519,59603.0,59602.0,1.85845893]
[1617341203120,0.92672519,59603.0,59602.0,2.16245393]
[1617341203515,0.92672519,59603.0,59602.0,2.31245393]
[1617341203921,0.92672519,59603.0,59602.0,0.81245393]
[1617341204117,0.92672519,59603.0,59602.0,0.56245393]
[1617341204941,0.92672519,59603.0,59602.0,1.19245393]
[1617341206143,0.92672519,59603.0,59602.0,0.56245393]
[1617341206346,0.97739406,59603.0,59602.0,0.56245393]
[1617341206549,0.92672519,59603.0,59602.0,0.56245393]
[1617341206752,1.06172519,59603.0,59602.0,0.25160272]
[1617341207150,1.44897119,59603.0,59602.0,0.25160272]
[1617341207576,1.06172519,59603.0,59602.0,0.25160272]
[1617341208181,1.44897119,59603.0,59602.0,0.25160272]
[1617341208380,1.06172519,59603.0,59602.0,0.25160272]
[1617341208783,1.44897119,59603.0,59602.0,0.25160272]
[1617341209796,1.57897119,59603.0,59602.0,1.272e-05]
[1617341210021,0.00598728,59601.0,59591.0,1.0]
[1617341210208,2.73909542,59592.0,59591.0,1.0]
[1617341210510,5.21600684,59592.0,59591.0,0.94119757]
[1617341210704,4.642556,59592.0,59591.0,0.77316963]
[1617341210903,4.602556,59592.0,59591.0,0.77316963]
[1617341211107,4.69356,59592.0,59591.0,0.77316963]
[1617341211305,4.39356,59592.0,59591.0,0.77316963]
[1617341211504,4.39356,59592.0,59576.0,0.002]
[1617341211505,0.55484742,59591.0,59576.0,0.002]
[1617341211704,0.97760142,59591.0,59576.0,0.002]
[1617341211905,0.814,59591.0,59576.0,0.002]
[1617341212109,0.004,59591.0,59576.0,0.002]
[1617341212305,0.004,59591.0,59577.0,0.00285876]
[1617341212527,0.25199,59592.0,59580.0,0.002]
[1617341212923,0.387246,59591.0,59580.0,0.002]
[1617341213124,0.155,59590.0,59580.0,0.002]
[1617341213321,0.406982,59590.0,59580.0,0.002]
[1617341213519,0.456982,59590.0,59580.0,0.002]
[1617341213965,0.387246,59589.0,59580.0,0.002]
[1617341214375,0.145,59588.0,59580.0,0.002]
[1617341214566,0.193,59588.0,59577.0,0.03]
[1617341214764,0.197,59588.0,59577.0,0.03]
[1617341214975,0.252003,59585.0,59576.0,0.002]
[1617341215366,0.0672006,59586.0,59576.0,0.002]
[1617341215770,0.004,59585.0,59576.0,0.002]
[1617341215971,0.004,59585.0,59577.0,0.03]
[1617341216368,0.004,59585.0,59576.0,0.032]
[1617341216574,0.004,59584.0,59574.0,0.00285876]
[1617341216772,0.004,59583.0,59574.0,0.00285876]
[1617341216972,0.004,59583.0,59573.0,0.03]
[1617341217171,0.004,59583.0,59574.0,0.30702076]
[1617341217369,0.004,59583.0,59574.0,0.304162]
[1617341217569,0.256011,59583.0,59574.0,0.304162]
[1617341217769,0.256011,59583.0,59573.0,0.03]
[1617341217973,0.145,59582.0,59573.0,0.03]
[1617341218770,0.054,59583.0,59573.0,0.03]